Cogmind - Beta 10.1 @@@ ROGUE MODE // 2020.10.13 @ 00:21:25 Player: Cracklepappy Result: Destroyed by as-98180 with Assembled Heavy Rifle Performance ------------- Evolutions (0) 0 Regions Visited (2) 400 Robots Destroyed (35) 175 Value Destroyed (618) 618 Prototype IDs (2) 40 Alien Tech Used (0) 0 Bonus (21) 21 TOTAL SCORE: 1254 Bonus ------- Follower Combat Kills 21 Cogmind --------- Core Integrity 0/250 Matter 276/300 Energy 250/250 System Corruption 0% Temperature Cool (0) Movement Treading (160) Location -10/Mines Parts ------- > --- POWER (1) -------- Ion Engine > --- PROPULSION (2) --- Light Treads Light Treads > --- UTILITY (2) ------ Medium Storage Unit Medium Storage Unit > --- WEAPON (2) ------- Assault Rifle Assault Rifle > --- INVENTORY (12) --- Ion Engine Light Treads Light Treads Aluminum Leg Large Matter Pod (150) EM Pulse Gun Assault Rifle Assault Rifle Light Cannon Datajack Mining Laser Peak State ------------ > --- POWER ------------ Ion Engine > --- PROPULSION ------- Light Treads Light Treads > --- UTILITY ---------- Small Storage Unit Medium Storage Unit > --- WEAPON ----------- Light Assault Rifle Light Assault Rifle > --- INVENTORY -------- Ion Engine Light Treads Light Treads Wheel Wheel Wheel EM Pulse Gun Light Assault Rifle Light Cannon Mining Laser [Rating: 8] Favorites ----------- Power Ion Engine Engine Ion Engine Propulsion Light Treads Treads Light Treads Wheel Wheel Utility Medium Storage Unit Storage Medium Storage Unit Weapon Assault Rifle Ballistic Gun Assault Rifle Special Weapon Mining Laser Build | -11 -10 -10 ------- Run | Scr Mat Min Slots Evolved . | . . . Power . | . . . Propulsion . | . . . Utility . | . . . Weapon . | . . . Parts Attached 24 | 7 16 1 Power 4 | 1 3 . Engine 4 | 1 3 . Core . | . . . Reactor . | . . . Propulsion 7 | 2 4 1 Treads 5 | 1 3 1 Leg . | . . . Wheel 2 | 1 1 . Hover . | . . . Flight . | . . . Utility 5 | 2 3 . Device . | . . . Storage 5 | 2 3 . Processor . | . . . Hackware . | . . . Protection . | . . . Artifact . | . . . Weapon 8 | 2 6 . Energy Gun . | . . . Energy Cannon . | . . . Ballistic Gun 7 | 2 5 . Ballistic Cannon . | . . . Launcher . | . . . Special Weapon 1 | . 1 . Impact Weapon . | . . . Slashing Weapon . | . . . Piercing Weapon . | . . . Special Melee Weapon . | . . . Unidentified Prototypes . | . . . Parts Lost 1 | . . 1 Power . | . . . Propulsion 1 | . . 1 Utility . | . . . Weapon . | . . . Highest Loss Streak 1 | . . 1 Average Slot Usage (%) 99 | . 99 100 Engine 13 | . 13 14 Treads 24 | . 23 28 Wheel 3 | . 4 . Storage 28 | . 28 28 Ballistic Gun 27 | . 26 28 Naked Turns . | . . . Heaviest Build 25 | 13 25 25 Greatest Support 40 | 20 40 40 Greatest Overweight (x) 1 | 1 1 . Average Overweight (x) . | . . . Largest Inventory Capacity 12 | 8 12 12 Average Capacity 10 | 6 9 12 Most Carried 12 | 8 12 12 Average Carried 9 | 4 9 11 Final Capacity 12 | 8 12 12 Final Carried 12 | 8 12 11 Class Distribution -------------------- 100% | Mutant Dominant Class ---------------- Mutant | -10/Materials Mutant | -10/Mines Resources | -11 -10 -10 ----------- Run | Scr Mat Min Matter Collected 893 | 296 568 29 Remotely . | . . . Salvage Created 1081 | 164 817 100 Parts 61 | 11 48 2 Haulers Intercepted 2 | . 2 . Recyclers Shooed 1 | 1 . . Parts Field Recycled . | . . . Retrieved Matter . | . . . Parts Self-Destructed . | . . . Prevented . | . . . Kills | -11 -10 -10 ------- Run | Scr Mat Min Combat Hostiles Destroyed 22 | . 19 3 Guns 22 | . 19 3 Classes Destroyed 9 | 2 6 1 Worker 2 | . 1 1 Tunneler 4 | 4 . . Hauler 2 | . 2 . Recycler 2 | 1 1 . Operator 1 | . 1 . Watcher 2 | . 2 . Swarmer 9 | . 9 . Grunt 12 | . 10 2 Assembled 1 | . . 1 Best Kill Streak 7 | 4 7 2 Combat Bots Only 6 | . 6 2 Max Kills in Single Turn 1 | 1 1 1 Gunslinging . | . . . Exploded . | . . . Melee . | . . . Uniques/NPCs Destroyed . | . . . Combat | -11 -10 -10 -------- Run | Scr Mat Min Damage Taken 841 | . 655 186 Core 252 | . 180 72 Absorbed by Shields . | . . . Core Remaining (%) 100 | 100 . . Volleys Fired 109 | 13 88 8 Largest 2 | 2 2 2 Hottest 100 | 40 100 40 Shots Fired 212 | 26 170 16 Gun 206 | 26 164 16 Cannon . | . . . Launcher . | . . . Special 6 | . 6 . Kinetic 206 | 26 164 16 Thermal 6 | . 6 . Explosive . | . . . Electromagnetic . | . . . Robot Hit Streak 10 | 7 10 8 Robot Miss Streak 7 | 2 7 1 Penetration Max . | . . . Secondary Targets 3 | . 2 1 Max Gunslinging Chain 1 | . 1 1 Shots Hit Robots 133 | 19 102 12 Core Hits 63 | 10 48 5 Critical Hits . | . . . Critical Kills . | . . . Critical Parts Destroyed . | . . . Melee Attacks . | . . . Impact . | . . . Slashing . | . . . Piercing . | . . . Sneak Attacks . | . . . Combat Hostiles . | . . . Follow-up Attacks . | . . . Damage Inflicted 1209 | 161 925 123 Guns 1203 | 161 920 122 Cannons . | . . . Explosions . | . . . Melee . | . . . Ramming 6 | . 5 1 Kinetic 1203 | 161 920 122 Thermal . | . . . Explosive . | . . . Electromagnetic . | . . . Impact . | . . . Slashing . | . . . Piercing . | . . . Highest Corruption . | . . . Average Corruption . | . . . Corruption Purged . | . . . Overload Shots . | . . . Overflow Damage . | . . . Projectiles . | . . . Explosions . | . . . Melee . | . . . Knockbacks . | . . . Impact . | . . . Kinetic . | . . . Secondary . | . . . Self-Inflicted Damage . | . . . Shots . | . . . Rammed . | . . . Targets Rammed 2 | . 1 1 Kicked . | . . . Crushed 2 | . 1 1 Highest Temperature 60 | . 60 2 Average Temperature 18 | . 19 2 Received Heat Transfer 276 | . 240 36 Siege Activations . | . . . Robots Corrupted . | . . . Combat Hostiles . | . . . Parts Fried . | . . . Impact Corruptions . | . . . Robots Melted . | . . . Combat Hostiles . | . . . Parts Melted 1 | . . 1 Heat Transferred . | . . . Parts Sabotaged . | . . . Parts Stolen . | . . . Parts Stripped . | . . . Power Chain Reactions . | . . . Missiles Intercepted . | . . . Alert | -11 -10 -10 ------- Run | Scr Mat Min Peak Influence 270 | 25 270 164 Initial 78 | . 16 78 Average 128 | 10 147 101 Maximum Alert Level 1 | . 1 . Low Security (%) 82 | 100 74 100 Level 1 17 | . 25 . Level 2 . | . . . Level 3 . | . . . Level 4 . | . . . Level 5 . | . . . High Security . | . . . Max Security . | . . . Squads Dispatched 5 | . 5 . Investigation 2 | . 2 . Extermination . | . . . Reinforcement 3 | . 3 . Assault . | . . . Garrison . | . . . Intercept . | . . . Construction Impeded . | . . . Haulers Reinforced . | . . . Stealth | -11 -10 -10 --------- Run | Scr Mat Min Distress Signals 3 | . 1 2 Communications Jammed . | . . . Distress Signals . | . . . Times Spotted 39 | . 31 8 Peak Tracking Total 6 | . 6 3 Tactical Retreats 2 | . 1 1 Traps | -11 -10 -10 ------- Run | Scr Mat Min Traps Triggered 3 | . 3 . Indirectly . | . . . Trap Hack Attempts . | . . . Triggered . | . . . Disarmed . | . . . Reprogrammed . | . . . Reused . | . . . Traps Extracted . | . . . Installed . | . . . Triggered . | . . . Machines | -11 -10 -10 ---------- Run | Scr Mat Min Machines Disabled . | . . . Max in Single Turn . | . . . Machines Sabotaged . | . . . Garrisons Compromised . | . . . Overloaded Fab Kills . | . . . Fab Network Shutdowns . | . . . Hacking | -11 -10 -10 --------- Run | Scr Mat Min Machines Accessed 6 | . 6 . Terminals 4 | . 4 . Fabricators . | . . . Repair Stations 1 | . 1 . Recycling Units 1 | . 1 . Scanalyzers . | . . . Garrison Access . | . . . Total Hacks 13 | . 13 . Successful 7 | . 7 . Failed 6 | . 6 . Catastrophic 2 | . 2 . Database Lockouts . | . . . Manual 9 | . 9 . Terminals 11 | . 11 . Fabricators . | . . . Repair Stations 1 | . 1 . Recycling Units 1 | . 1 . Scanalyzers . | . . . Garrison Access . | . . . Terminal Hacks 5 | . 5 . Part Schematic 2 | . 2 . Prototype ID Bank 1 | . 1 . Locate Traps 1 | . 1 . Zone Layout 1 | . 1 . Fabricator Hacks . | . . . Repair Station Hacks . | . . . Recycling Unit Hacks . | . . . Scanalyzer . | . . . Garrison Access Hacks . | . . . Unauthorized Hacks 2 | . 2 . Terminals . | . . . Fabricators . | . . . Repair Stations 1 | . 1 . Mechanics 1 | . 1 . Recycling Units 1 | . 1 . Tunnel 1 | . 1 . Scanalyzers . | . . . Garrison Access . | . . . Data Cores Recovered . | . . . Used . | . . . Hacking Detections 4 | . 4 . Full Trace Events . | . . . Feedback Events . | . . . Feedback Blocked . | . . . Robot Schematics Acquired . | . . . Robots Built . | . . . Matter . | . . . Time . | . . . Total Robot Build Rating . | . . . Part Schematics Acquired 2 | . 2 . Parts Built . | . . . Matter . | . . . Time . | . . . Total Part Build Rating . | . . . Parts Repaired . | . . . Time . | . . . Parts Recycled . | . . . Recycled Matter . | . . . Retrieved Matter . | . . . Retrieved Components . | . . . Parts Scanalyzed . | . . . Part Schematics Acquired . | . . . Parts Damaged . | . . . Bothacking | -11 -10 -10 ------------ Run | Scr Mat Min Used RIF Installer . | . . . Robots Hacked . | . . . Non-combat . | . . . Combat . | . . . Robot Hacks Applied . | . . . Relay Couplers Released . | . . . Robots Rewired . | . . . Allies Hacked . | . . . Hacks Repelled . | . . . Allies | -11 -10 -10 -------- Run | Scr Mat Min Total Allies 3 | . . 3 Largest Group 3 | . . 3 Highest-Rated Group 40 | . . 40 Highest-Rated Ally 16 | . . 16 Total Orders . | . . . Ally Attacks 22 | . . 22 Total Damage 232 | . . 232 Kills 3 | . . 3 Allies Corrupted . | . . . Allies Melted . | . . . Intel | -11 -10 -10 ------- Run | Scr Mat Min Robot Analysis Total . | . . . Derelict Logs Recovered . | . . . Drone Launches . | . . . Drone Recoveries . | . . . Exploration | -11 -10 -10 ------------- Run | Scr Mat Min Turns Passed 2171 | 124 1499 548 Spaces Moved 1006 | 77 805 124 Core 2 | 2 . . Treads 635 | 1 510 124 Legs . | . . . Wheels 369 | 74 295 . Hover . | . . . Flight . | . . . Fastest Speed 50 | 50 90 160 Average Speed 133 | 85 134 160 Slowest Speed 180 | 160 180 160 Overloaded Moves . | . . . Propulsion Burnouts . | . . . Robots Hopped . | . . . Cave-ins Triggered . | . . . Exploration Rate (%) 38 | 4 96 15 Regions Visited 2 Branch Regions 1 Pre-discovered Areas 1 | . 1 . Known Exits Taken . | . . . Unknown Exits Taken 2 | 1 1 . Scrap Searched . | . . . Spaces Dug 4 | . 4 . Terrain Destroyed 4 | . 4 . Melee . | . . . Projectile 4 | . 4 . AOE . | . . . Terrain Rammed . | . . . Walls Destroyed . | . . . Machines Disabled . | . . . Actions | -11 -10 -10 --------- Run | Scr Mat Min Total 1639 | 110 1071 458 Wait 454 | 4 126 324 Move 1004 | 76 804 124 Hop . | . . . Pick Up 25 | 9 16 . Fast Attach 13 | 7 6 . Attach 1 | . . 1 Detach . | . . . Swap 10 | . 10 . Drop 21 | 1 20 . Fire 109 | 13 88 8 Melee . | . . . Ram . | . . . Kick . | . . . Crush 2 | . 1 1 Escape Stasis . | . . . Rewire . | . . . Trap . | . . . Miscellaneous . | . . . Route ------- -11/Scrapyard -10/Materials (discovered 5 exits: [*Mat x3] / [*Min x2]) -10/Mines History --------- Turn | Location | Event 25 | -11/Scrapyard | Discovered new exit (range 15) 125 | -11/Scrapyard | Entered Materials 313 | -10/Materials | Discovered new exit (range 12) 330 | -10/Materials | Build established: Mutant 574 | -10/Materials | Core integrity fell below 50% 614 | -10/Materials | Discovered new exit (range 16) 893 | -10/Materials | Discovered new exit (range 15) 1143 | -10/Materials | Discovered new exit (range 20) 1396 | -10/Materials | Discovered new exit (range 3) 1624 | -10/Materials | Entered Mines 1629 | -10/Mines | Assisted by bots powering up and referring to "LRC-V3" 1770 | -10/Mines | Core integrity fell below 20% 1787 | -10/Mines | Assembled infested the area 1792 | -10/Mines | Assisted by a Guerilla fighting off Assembled 2172 | -10/Mines | Destroyed by as-98180 with Assembled Heavy Rifle Last Messages --------------- 01620_ Acquired Aluminum Leg. LOCATION=UNKNOWN GOAL=ESCAPE 01629_ Trooper 1a: "Hello LRC-V3. What is your command?" 01629_ Mercenary 1a: "Hello LRC-V3. What is your command?" 01629_ Trooper 1b: "Hello LRC-V3. What is your command?" 01645_ K-01 Serf collects debris. 01656_ S-10 Pest destroyed. 01666_ K-01 Serf collects debris. 01667_ Crushed K-01 Serf. 01667_ K-01 Serf destroyed. 01759_ Heat Sink melted. 01759_ G-34 Mercenary destroyed. 01763_ Lgt. Treads destroyed. 01769_ G-47 Trooper destroyed. 01770_ Acquired 29 matter. 01787_ ALERT: Infestation in the mines, dispatching Demolisher response squad. 02167_ as-97979 destroyed. 02167_ Switching to secondary target: as-98180. Map ----- +----------------------------------------------------+ | | | | | | | | | | | | | | | | | | | | | | | | | | | ?????????????????????????????????????????????????? | | ?????????????????????#####?????????######????????? | | ?????????????????????# #?????????# #????????? | | ?????????????????????# ########??# #????????? | | ?????????????????????# #??# #????????? | | ?????????????????????# ##### #??# #????????? | | ????????????????????## #???# #??# #????????? | | ???????????????????## #???# #??# #????????? | | ??????????????????## #???#=#?### ###????????? | | ??????????????????# ##???#%### ##?????????? | | ??????????????????# #????#*%%% ##????????? | | ??????????????????## a##???###=% ##???????? | | ???????????????????## %@#?????# #???????? | | ????????????????????# #?????## #???????? | | ????????????????????## ############### #???????? | | ?????????????????????##### ?????#!#???????? | | ???????????????????????????? ????#[#???????? | | ????????????????????????????"" """ #####%#???????? | | ????????????????????????????"" """ =%[%*%#???????? | | ????????????????????????????"" """ #=#####???????? | | ???????????????????????????? ??#!#???????????? | | ???????????????????????????# #???##%##??????????? | | ???????????????????????????#??????# #??????????? | | ?????????????????????????????????# #?????????? | | ??????????????????????????????? #?????????? | | ???????????????????????????? """ #?????????? | | ?????????????????????????? """ ?????????? | | ?????????????????????????## ## """ #????????? | | ??????????????????????????#???## #????????? | | ???????????????????????????????##### ##????????? | | ???????????????????????????????????#####?????????? | | ?????????????????????????????????????????????????? | | ?????????????????????????????????????????????????? | | ?????????????????????????????????????????????????? | | ?????????????????????????????????????????????????? | | ?????????????????????????????????????????????????? | | ?????????????????????????????????????????????????? | +----------------------------------------------------+ Best States ------------- Heat Dissipation 25 Energy Generation 10 Energy Capacity 250 Matter Stores 300 Matter Capacity 300 Sight Range 16 Terrain Scan Density 10 Evasion (%) 44 Recoil Reduction 2 Item Schematics ----------------- Hcp. Storage Unit | -10/Materials | Hacked Lrg. Storage Unit | -10/Materials | Hacked Robot Schematics ------------------ None Fabricated ------------ Nothing Alien Tech Used ----------------- None Achievements -------------- None Challenges ------------ None Game ------ Seed MinesnifferMicroCore Manual? 0 Play Time 00:14:32 Cumulative 211.7 hours Start 2020.10.13 @ 00:04:19 End 2020.10.13 @ 00:21:25 Sessions 1 Manual Loads 0 Difficulty Rogue Special Mode None Game No. 237 Rogue 237 Adventurer 0 Explorer 0 Win Type - Total 2 Types 2/0/0/0/0/0/0/0/0 Lore% 61 Gallery% 75 Achievement% 58 Wizard Run 0 Options --------- ASCII 0 Keyboard 0 Movement Numpad Keybinds 0 Fullscreen 2 Font 24/Smallcaps Map View 76x50 Tactical HUD 1 Map Filters NONE Filters NONE Steam 1 RUN: 71990814-0b1c-4409-b240-cbab15cddf0e